Cogmind - Beta 14 @@@ ROGUE MODE // 2024.11.23 @ 19:11:27 Player: akira Result: Destroyed by 67-7W9(B) with Slug Cannon Performance ------------- Evolutions (3) 1500 Regions Visited (11) 2200 Robots Destroyed (150) 750 Value Destroyed (5654) 5654 Prototype IDs (30) 600 Alien Tech Used (0) 0 Bonus (2422) 2422 TOTAL SCORE: 13126 Bonus ------- High Alert Combat Kills 1278 Follower Combat Kills 171 Entered Garrisons 200 Used RIF Installer 500 Aligned with FarCom 300 Friendly Fire -27 Cogmind --------- Core Integrity 0/700 Matter 297/300 Energy 170/170 System Corruption 0% Temperature Cool (0) Movement Treading (320) Ox2 Location -7/Zion Parts ------- > --- POWER (1) -------- Light Antimatter Reactor > --- PROPULSION (4) --- Light Treads > --- UTILITY (6) ------ High-capacity Storage Unit Launcher Guidance Computer Makeshift Hacking Suite Relay Coupler [NC] (17) Relay Coupler [Grunt] (1) > --- WEAPON (2) ------- (None) > --- INVENTORY (20) --- Reinforced Deuterium Engine Carbon-fiber Leg Improved Carbon-fiber Leg Myomer Leg Thermal Generator Actuator Array Improved Light Armor Plating Improved Heavy Armor Plating Improved Heavy Armor Plating System Shield Relay Coupler [NC] (36) Relay Coupler [Sentry] (33) Advanced Assault Cannon Remote Datajack Remote Datajack Peak State ------------ > --- POWER ------------ Light Antimatter Reactor > --- PROPULSION ------- Armored Treads Medium Treads Improved Carbon-fiber Leg Myomer Leg > --- UTILITY ---------- High-capacity Storage Unit Target Analyzer Microactuators Improved Heavy Armor Plating Hacking Suite > --- WEAPON ----------- Remote Datajack Longsword +1 > --- INVENTORY -------- Reinforced Deuterium Engine Light Treads Light Treads Light Treads Armored Treads Armored Treads Carbon-fiber Leg Actuator Array Improved Heavy Armor Plating System Shield Relay Coupler [NC] Relay Coupler [NC] Relay Coupler [Grunt] Relay Coupler [Sentry] Precision Assault Rifle Advanced Assault Cannon Heavy Rocket Launcher Remote Datajack Remote Datajack [Rating: 64] Favorites ----------- Power Light Antimatter Reactor Engine Heavy Deuterium Engine Power Core Light Nuclear Core Reactor Light Antimatter Reactor Propulsion Armored Treads Treads Armored Treads Leg Improved Titanium Leg Utility Hacking Suite Device Microactuators Storage High-capacity Storage Unit Processor Signal Interpreter Hackware Hacking Suite Protection Medium Reactive Plating Weapon Longsword +1 Energy Gun EM Pulse Gun Ballistic Gun Assault Rifle Ballistic Cannon Advanced Assault Cannon Launcher Heavy Rocket Launcher Special Weapon Remote Datajack Impact Weapon Flail Slashing Weapon Longsword +1 Build | -11 -10 -10 -10 -9 -8 -7 -7 -7 -7 -7 -7 ------- Run | Yrd Mat Min Exi Min Mat Fac Gar Fac Low Low Zio Slots Evolved 6 | . . . . . 4 2 . . . . . Power . | . . . . . . . . . . . . Propulsion 2 | . . . . . 1 1 . . . . . Utility 4 | . . . . . 3 1 . . . . . Weapon . | . . . . . . . . . . . . Parts Attached 188 | 6 12 8 1 2 26 82 25 20 2 4 . Power 22 | 1 1 1 . 1 4 11 3 . . . . Engine 18 | 1 1 . . . 3 11 2 . . . . Core 3 | . . 1 . 1 1 . . . . . . Reactor 1 | . . . . . . . 1 . . . . Propulsion 54 | 3 4 3 . . 5 20 9 10 . . . Treads 19 | 1 2 . . . . 4 5 7 . . . Leg 35 | 2 2 3 . . 5 16 4 3 . . . Wheel . | . . . . . . . . . . . . Hover . | . . . . . . . . . . . . Flight . | . . . . . . . . . . . . Utility 70 | 1 5 . . . 12 33 11 6 . 2 . Device 27 | . . . . . 2 20 4 . . 1 . Storage 9 | 1 3 . . . 5 . . . . . . Processor 5 | . 1 . . . 1 1 1 1 . . . Hackware 5 | . . . . . . 2 . 2 . 1 . Protection 24 | . 1 . . . 4 10 6 3 . . . Artifact . | . . . . . . . . . . . . Weapon 42 | 1 2 4 1 1 5 18 2 4 2 2 . Energy Gun 4 | . . 2 . . . 2 . . . . . Energy Cannon . | . . . . . . . . . . . . Ballistic Gun 9 | 1 2 1 . 1 . 3 . 1 . . . Ballistic Cannon 7 | . . 1 . . 1 5 . . . . . Launcher 6 | . . . . . 2 2 . 1 1 . . Special Weapon 3 | . . . . . . . 1 2 . . . Impact Weapon 1 | . . . . . . . . . . 1 . Slashing Weapon 12 | . . . 1 . 2 6 1 . 1 1 . Piercing Weapon . | . . . . . . . . . . . . Special Melee Weapon . | . . . . . . . . . . . . Unidentified Prototypes 7 | . . . . . 3 4 . . . . . Parts Lost 32 | . 2 4 . 1 1 5 8 5 . . 6 Power 6 | . 1 1 . 1 1 1 1 . . . . Propulsion 11 | . . . . . . 2 3 3 . . 3 Utility 10 | . 1 . . . . 2 4 2 . . 1 Weapon 5 | . . 3 . . . . . . . . 2 Highest Loss Streak 6 | . 1 2 . 1 1 3 4 4 . . 6 To Critical Strikes 2 | . . . . . . . . . . . 2 Average Slot Usage (%) 95 | . 97 97 92 95 92 95 92 94 100 95 96 Engine 5 | . 14 1 . . 5 7 5 . . . . Core 2 | . . 12 14 9 3 . . . . . . Reactor 1 | . . . . . . . . 7 7 7 7 Treads 10 | . 15 . . . . 2 22 29 30 30 27 Leg 18 | . 12 28 28 28 27 27 6 . . . . Device 6 | . . . . . 2 11 15 3 . . . Storage 9 | . 19 14 14 14 9 7 7 7 7 7 7 Processor 6 | . 4 14 14 14 17 2 1 7 7 7 7 Hackware 8 | . . . . . . 14 7 13 15 16 23 Protection 7 | . 2 . . . 15 7 8 9 15 9 6 Energy Gun 1 | . . 14 . . . . . . . . . Ballistic Gun 3 | . 27 9 . 13 . . . . . . . Ballistic Cannon 1 | . . 2 14 14 . 2 . . . . . Launcher 1 | . . . . . 2 . 1 . 6 7 7 Special Weapon 1 | . . . . . . . 3 6 2 . . Slashing Weapon 5 | . . . 6 . 8 6 7 5 4 6 7 Peak Build Rating 64 | 5 8 16 24 24 39 60 59 64 46 47 47 Average Rating 38 | 3 7 11 20 16 32 50 52 49 44 44 46 On Entrance 29 | . 5 7 16 24 17 39 49 59 42 46 47 Naked Turns . | . . . . . . . . . . . . Heaviest Build 86 | 12 49 30 33 33 67 86 83 75 69 69 66 Greatest Support 97 | 20 40 34 34 34 56 89 97 88 80 80 80 Greatest Overweight (x) 3 | 3 1 1 . . 1 1 . 3 . . 2 Average Overweight (x) . | . . . . . . . . . . . . Largest Inventory Capacity 20 | 8 20 15 15 15 20 20 20 20 20 20 20 Average Capacity 18 | 7 15 15 15 15 15 20 20 20 20 20 20 Most Carried 20 | 6 10 15 15 15 18 20 20 20 15 18 17 Average Carried 15 | 4 8 12 15 14 14 18 16 17 15 16 17 Final Capacity 20 | 8 15 15 15 15 20 20 20 20 20 20 20 Final Carried 20 | 5 9 15 15 14 18 15 20 15 15 17 17 Class Distribution -------------------- 33% | Mutant 29% | Hacker-Mutant 17% | Bothacker-Mutant 14% | Scavenger-Mutant Dominant Class ---------------- Mutant | -10/Materials Scavenger-Mutant | -10/Mines Mutant | -10/Exiles Mutant | -9/Mines Mutant | -8/Materials Hacker-Mutant | -7/Factory Mutant | -7/Garrison Bothacker-Mutant | -7/Factory Bothacker-Mutant | -7/Lower Caves Bothacker-Mutant | -7/Lower Caves Bothacker-Mutant | -7/Zion Resources | -11 -10 -10 -10 -9 -8 -7 -7 -7 -7 -7 -7 ----------- Run | Yrd Mat Min Exi Min Mat Fac Gar Fac Low Low Zio Matter Collected 3536 | 222 534 214 . . 387 1233 434 284 148 43 37 Remotely . | . . . . . . . . . . . . Salvage Created 6023 | . 577 287 . 15 1059 2149 1486 281 169 . . Parts 351 | . 42 20 . 6 61 120 79 15 8 . . Haulers Intercepted 4 | . . . . . 4 . . . . . . Recyclers Shooed . | . . . . . . . . . . . . Parts Field Recycled . | . . . . . . . . . . . . Retrieved Matter . | . . . . . . . . . . . . Parts Self-Destructed 7 | . . . . . . . . . 7 . . Prevented . | . . . . . . . . . . . . Kills | -11 -10 -10 -10 -9 -8 -7 -7 -7 -7 -7 -7 ------- Run | Yrd Mat Min Exi Min Mat Fac Gar Fac Low Low Zio Combat Hostiles Destroyed 127 | . 16 8 . 3 14 44 29 5 8 . . Melee 80 | . . . . . 14 33 28 3 2 . . Guns 28 | . 16 7 . . . 3 . 2 . . . Cannons 9 | . . . . 3 . 6 . . . . . AOE 10 | . . 1 . . . 2 1 . 6 . . Classes Destroyed 15 | . 5 . . . 4 4 2 . . . . Worker 3 | . 1 . . . . 2 . . . . . Builder 1 | . . . . . 1 . . . . . . Hauler 4 | . . . . . 4 . . . . . . Recycler 1 | . . . . . . 1 . . . . . Mechanic 1 | . . . . . . 1 . . . . . Operator 5 | . 1 . . . 3 1 . . . . . Watcher 8 | . 2 . . . 3 1 1 1 . . . Swarmer 36 | . 6 3 . 3 1 5 12 . 6 . . Grunt 46 | . 10 5 . . 7 20 . 2 2 . . Brawler 5 | . . . . . . . 5 . . . . Duelist 1 | . . . . . . . 1 . . . . Sentry 14 | . . . . . 3 4 6 1 . . . Specialist 2 | . . . . . . 2 . . . . . Hunter 6 | . . . . . 3 3 . . . . . Programmer 17 | . . . . . . 10 5 2 . . . Best Kill Streak 11 | . 6 3 . 2 3 11 6 2 3 . . Combat Bots Only 8 | . 5 3 . 2 3 8 6 2 3 . . Max Kills in Single Turn 3 | . 2 1 . 1 1 3 1 1 3 . . Gunslinging 1 | . 1 . . . . . . . . . . Exploded 3 | . . 1 . . . 1 1 . 3 . . Melee 1 | . . . . . 1 1 1 1 1 . . Uniques/NPCs Destroyed . | . . . . . . . . . . . . Combat | -11 -10 -10 -10 -9 -8 -7 -7 -7 -7 -7 -7 -------- Run | Yrd Mat Min Exi Min Mat Fac Gar Fac Low Low Zio Hostile Shots Fired 978 | . 91 37 . 50 66 397 228 50 20 . 39 Missed 292 | . 26 10 . 14 22 128 59 13 5 . 15 Damage Taken 8014 | . 756 373 . 299 446 3305 1859 447 214 . 315 Core 983 | . 114 51 . 56 62 436 150 59 25 . 30 Absorbed by Shields 124 | . . . . . . 124 . . . . . Redirected to Shielding 4 | . . . . . . . 4 . . . . Ignored by Resistances 405 | . . . . . 90 281 . 22 12 . . Regen/Repaired (Parts) 69 | . . . . . . 69 . . . . . Core Remaining (%) 66 | 100 . . . 11 88 . . . . . . Volleys Fired 209 | . 66 23 . 17 . 70 12 17 4 . . Largest 2 | . 2 2 . 2 . 1 1 1 1 . . Hottest 105 | . 40 105 . 64 . 48 5 28 39 . . Shots Fired 322 | . 132 48 1 34 . 73 13 17 4 . . Gun 236 | . 132 48 . 17 . 31 . 8 . . . Cannon 55 | . . . 1 17 . 37 . . . . . Launcher 10 | . . . . . . 5 1 . 4 . . Special 21 | . . . . . . . 12 9 . . . Kinetic 275 | . 132 33 1 34 . 67 . 8 . . . Thermal 6 | . . 5 . . . 1 . . . . . Explosive 10 | . . . . . . 5 1 . 4 . . Electromagnetic 10 | . . 10 . . . . . . . . . Robot Hit Streak 16 | . 14 16 2 5 . 13 13 13 2 . . Robot Miss Streak 4 | . 3 3 . 4 . 3 . 2 1 . . Penetration Max . | . . . . . . . . . . . . Secondary Targets 2 | . 1 1 . . . . . . . . . Max Gunslinging Chain 1 | . 1 1 . . . . . . . . . Shots Hit Robots 411 | . 87 31 1 15 44 124 79 23 7 . . Core Hits 193 | . 31 15 . 5 23 67 34 9 9 . . Critical Kills . | . . . . . . . . . . . . Critical Parts Destroyed . | . . . . . . . . . . . . Critical Strikes 21 | . . 1 . . 4 11 4 1 . . . Burn 1 | . . 1 . . . . . . . . . Blast 2 | . . . . . . 2 . . . . . Sever 18 | . . . . . 4 9 4 1 . . . Melee Attacks 281 | . . . . 1 46 126 92 11 5 . . Impact . | . . . . . . . . . . . . Slashing 281 | . . . . 1 46 126 92 11 5 . . Piercing . | . . . . . . . . . . . . Sneak Attacks 23 | . . . . . 11 4 8 . . . . Combat Hostiles 6 | . . . . . 3 2 1 . . . . Follow-up Attacks . | . . . . . . . . . . . . Damage Inflicted 15010 | . 1178 403 27 258 2578 5808 3269 563 926 . . Guns 2286 | . 1178 373 . 48 . 523 . 164 . . . Cannons 642 | . . . 27 169 . 446 . . . . . Explosions 1698 | . . 30 . . . 949 63 . 656 . . Melee 10384 | . . . . 41 2578 3890 3206 399 270 . . Ramming . | . . . . . . . . . . . . Kinetic 2802 | . 1178 247 27 217 . 969 . 164 . . . Thermal 62 | . . 62 . . . . . . . . . Explosive 1546 | . . . . . . 827 63 . 656 . . Electromagnetic 216 | . . 94 . . . 122 . . . . . Impact . | . . . . . . . . . . . . Slashing 10384 | . . . . 41 2578 3890 3206 399 270 . . Piercing . | . . . . . . . . . . . . Highest Corruption 13 | . 2 2 2 2 . 5 12 13 13 13 13 Average Corruption 5 | . 2 2 2 2 . 2 9 12 13 13 13 Corruption Purged . | . . . . . . . . . . . . Corruption Blocked . | . . . . . . . . . . . . Effects 272 | . 6 20 6 . . 77 56 55 34 16 2 Message Errors 63 | . 1 5 2 . . 16 16 11 11 1 . Matter Fused 66 | . 1 6 1 . . 22 11 13 7 4 1 Heat Flow Errors 36 | . 1 2 . . . 11 11 8 2 1 . Energy Discharges 36 | . . 1 1 . . 12 5 7 7 3 . Parts Rejected 2 | . . . . . . . . 2 . . . Parts Fused 2 | . 1 . . . . . 1 . . . . Data Loss (minor) 35 | . 2 1 1 . . 9 6 8 5 3 . Data Loss (major) 18 | . . 3 . . . 3 5 1 1 4 1 Misfires 7 | . . 2 1 . . 3 1 . . . . Alerts 6 | . . . . . . 1 . 4 1 . . Misdirections 1 | . . . . . . . . 1 . . . Overload Shots . | . . . . . . . . . . . . Overflow Damage 861 | . . 2 . 18 258 342 141 14 86 . . Projectiles 17 | . . . . 17 . . . . . . . Explosions 81 | . . 2 . . . 23 . . 56 . . Melee 763 | . . . . 1 258 319 141 14 30 . . Knockbacks 6 | . . . . 3 . 3 . . . . . Impact . | . . . . . . . . . . . . Kinetic 6 | . . . . 3 . 3 . . . . . Secondary . | . . . . . . . . . . . . Self-Inflicted Damage 140 | . . 48 . . . 35 57 . . . . Shots 3 | . . 1 . . . 1 1 . . . . Rammed . | . . . . . . . . . . . . Targets Rammed . | . . . . . . . . . . . . Kicked . | . . . . . . . . . . . . Crushed . | . . . . . . . . . . . . Highest Temperature 385 | . 268 224 16 28 . 385 281 271 261 204 . Average Temperature 90 | . 48 61 8 13 . 116 107 88 119 107 . Received Heat Transfer 2167 | . 369 177 . . 81 1096 198 192 54 . . Effects 5 | . 2 . . . . 3 . . . . . Shutdowns 1 | . . . . . . 1 . . . . . Energy Bleed 2 | . . . . . . 2 . . . . . Interference 2 | . 2 . . . . . . . . . . Siege Activations . | . . . . . . . . . . . . Robots Corrupted . | . . . . . . . . . . . . Combat Hostiles . | . . . . . . . . . . . . Parts Fried . | . . . . . . . . . . . . Impact Corruptions . | . . . . . . . . . . . . Robots Melted . | . . . . . . . . . . . . Combat Hostiles . | . . . . . . . . . . . . Parts Melted 2 | . . . . . . . 2 . . . . Heat Transferred 148 | . . 148 . . . . . . . . . Parts Sabotaged . | . . . . . . . . . . . . Parts Stolen . | . . . . . . . . . . . . Parts Stripped . | . . . . . . . . . . . . Power Chain Reactions 2 | . . 1 . . . 1 . . . . . Alert | -11 -10 -10 -10 -9 -8 -7 -7 -7 -7 -7 -7 ------- Run | Yrd Mat Min Exi Min Mat Fac Gar Fac Low Low Zio Peak Influence 1674 | . 375 153 . 79 202 1047 1674 909 . . . Initial 878 | . . 10 . . 30 41 732 878 . . . Average 308 | . 153 34 . 63 49 193 1140 694 . . . Maximum Alert Level 5 | . 1 . . . 1 3 5 3 . . . Low Security (%) 64 | 100 63 100 . 100 94 77 . . . . . Level 1 6 | . 36 . . . 5 6 . . . . . Level 2 8 | . . . . . . 7 . 47 . . . Level 3 15 | . . . . . . 9 58 52 . . . Level 4 2 | . . . . . . . 22 . . . . Level 5 2 | . . . . . . . 18 . . . . High Security . | . . . . . . . . . . . . Max Security . | . . . . . . . . . . . . Squads Dispatched 35 | . 3 1 . . 6 21 . 4 . . . Investigation 13 | . 2 1 . . 4 4 . 2 . . . Extermination 11 | . . . . . . 10 . 1 . . . Reinforcement 8 | . 1 . . . 2 5 . . . . . Assault 3 | . . . . . . 2 . 1 . . . Garrison . | . . . . . . . . . . . . Intercept . | . . . . . . . . . . . . Searches Triggered . | . . . . . . . . . . . . Construction Impeded . | . . . . . . . . . . . . Haulers Reinforced 1 | . . . . . . 1 . . . . . Active Scanning Responses . | . . . . . . . . . . . . Cargo Convoy Interrupts . | . . . . . . . . . . . . Stealth | -11 -10 -10 -10 -9 -8 -7 -7 -7 -7 -7 -7 --------- Run | Yrd Mat Min Exi Min Mat Fac Gar Fac Low Low Zio Distress Signals 5 | . 1 . . . 3 1 . . . . . Communications Jammed . | . . . . . . . . . . . . Distress Signals . | . . . . . . . . . . . . Times Spotted 186 | . 24 10 . 3 26 60 33 15 13 . 2 Peak Tracking Total 7 | . 5 3 . 3 5 6 7 5 4 . 2 Tactical Retreats 13 | . 1 1 . . . 1 3 3 4 . . Traps | -11 -10 -10 -10 -9 -8 -7 -7 -7 -7 -7 -7 ------- Run | Yrd Mat Min Exi Min Mat Fac Gar Fac Low Low Zio Traps Triggered 12 | . 2 . . . 1 8 1 . . . . Indirectly 1 | . . . . . . 1 . . . . . Trap Hack Attempts . | . . . . . . . . . . . . Triggered . | . . . . . . . . . . . . Disarmed . | . . . . . . . . . . . . Reprogrammed . | . . . . . . . . . . . . Reused . | . . . . . . . . . . . . Traps Extracted . | . . . . . . . . . . . . Installed . | . . . . . . . . . . . . Triggered . | . . . . . . . . . . . . Machines | -11 -10 -10 -10 -9 -8 -7 -7 -7 -7 -7 -7 ---------- Run | Yrd Mat Min Exi Min Mat Fac Gar Fac Low Low Zio Machines Disabled 7 | . 1 1 . 1 . 4 . . . . . Max in Single Turn 1 | . 1 1 . 1 . 1 . . . . . Machines Repaired . | . . . . . . . . . . . . Machines Dismantled . | . . . . . . . . . . . . Machines Sabotaged . | . . . . . . . . . . . . Overloaded Fab Kills . | . . . . . . . . . . . . Hacking | -11 -10 -10 -10 -9 -8 -7 -7 -7 -7 -7 -7 --------- Run | Yrd Mat Min Exi Min Mat Fac Gar Fac Low Low Zio Machines Accessed 30 | . 6 1 1 1 4 11 2 2 1 1 . Terminals 18 | . 5 . . . 2 6 2 2 1 . . Fabricators . | . . . . . . . . . . . . Repair Stations 2 | . 1 . . . . 1 . . . . . Recycling Units 2 | . . . . . . 2 . . . . . Scanalyzers 3 | . . . . . 2 1 . . . . . Garrison Access 1 | . . . . . . 1 . . . . . Total Hacks 70 | . 14 1 1 1 15 26 4 6 1 1 . Successful 40 | . 4 1 1 1 10 18 1 2 1 1 . Failed 30 | . 10 . . . 5 8 3 4 . . . Catastrophic 5 | . 2 . . . . 2 1 . . . . Database Lockouts . | . . . . . . . . . . . . Manual 24 | . 13 . 1 . 5 5 . . . . . Terminals 42 | . 13 . . . 6 12 4 6 1 . . Fabricators . | . . . . . . . . . . . . Repair Stations 3 | . 1 . . . . 2 . . . . . Recycling Units 7 | . . . . . . 7 . . . . . Scanalyzers 13 | . . . . . 9 4 . . . . . Garrison Access 1 | . . . . . . 1 . . . . . Terminal Hacks 19 | . 4 1 1 1 2 5 1 2 1 1 . Record 2 | . . . . . . . . . 1 1 . Part Schematic 5 | . 1 . . . . 3 . 1 . . . Robot Analysis 3 | . 2 . . . 1 . . . . . . Open Door 2 | . . 1 . 1 . . . . . . . Open DSF 1 | . . . . . . 1 . . . . . Emergency Access Points 1 | . . . . . . . 1 . . . . Alert Level 2 | . . . . . . 1 . 1 . . . Unreport Threat 1 | . 1 . . . . . . . . . . Zone Layout 1 | . . . . . 1 . . . . . . Derelict Proto ID Bank 1 | . . . 1 . . . . . . . . Fabricator Hacks . | . . . . . . . . . . . . Repair Station Hacks 2 | . . . . . . 2 . . . . . Scan Component 1 | . . . . . . 1 . . . . . Repair 1 | . . . . . . 1 . . . . . Recycling Unit Hacks 6 | . . . . . . 6 . . . . . Process 2 | . . . . . . 2 . . . . . Report Inventory 1 | . . . . . . 1 . . . . . Retrieve Matter 3 | . . . . . . 3 . . . . . Scanalyzer 12 | . . . . . 8 4 . . . . . Insert Component 6 | . . . . . 4 2 . . . . . Analyze 6 | . . . . . 4 2 . . . . . Garrison Access Hacks 1 | . . . . . . 1 . . . . . Unlock Access 1 | . . . . . . 1 . . . . . Unauthorized Hacks . | . . . . . . . . . . . . Terminals . | . . . . . . . . . . . . Fabricators . | . . . . . . . . . . . . Repair Stations . | . . . . . . . . . . . . Recycling Units . | . . . . . . . . . . . . Scanalyzers . | . . . . . . . . . . . . Garrison Access . | . . . . . . . . . . . . Data Cores Recovered 1 | . . . . . 1 . . . . . . Used 1 | . . . . . 1 . . . . . . Hacking Detections 21 | . 5 . . . 4 9 1 2 . . . Full Trace Events 10 | . 2 . . . 3 3 1 1 . . . Feedback Events . | . . . . . . . . . . . . Feedback Blocked . | . . . . . . . . . . . . Robot Schematics Acquired . | . . . . . . . . . . . . Robots Built . | . . . . . . . . . . . . Authchips . | . . . . . . . . . . . . Time . | . . . . . . . . . . . . Total Robot Build Rating . | . . . . . . . . . . . . Part Schematics Acquired 11 | . 1 . . . 4 5 . 1 . . . Parts Built . | . . . . . . . . . . . . Authchips . | . . . . . . . . . . . . Time . | . . . . . . . . . . . . Total Part Build Rating . | . . . . . . . . . . . . Parts Repaired 1 | . . . . . . 1 . . . . . Time 44 | . . . . . . 44 . . . . . Parts Recycled . | . . . . . . . . . . . . Recycled Matter 27 | . . . . . . 27 . . . . . Retrieved Matter 101 | . . . . . . 101 . . . . . Retrieved Components . | . . . . . . . . . . . . Parts Scanalyzed 6 | . . . . . 4 2 . . . . . Part Schematics Acquired 6 | . . . . . 4 2 . . . . . Parts Damaged 1 | . . . . . 1 . . . . . . Bothacking | -11 -10 -10 -10 -9 -8 -7 -7 -7 -7 -7 -7 ------------ Run | Yrd Mat Min Exi Min Mat Fac Gar Fac Low Low Zio Used RIF Installer 1 | . . . . . . . 1 . . . . Robots Hacked 6 | . . . . . . . . 6 . . . Non-combat 3 | . . . . . . . . 3 . . . Combat 3 | . . . . . . . . 3 . . . Robot Hacks Applied 6 | . . . . . . . . 6 . . . parse_system 1 | . . . . . . . . 1 . . . link_fov 1 | . . . . . . . . 1 . . . amplify_resonance 1 | . . . . . . . . 1 . . . formatsys_high 3 | . . . . . . . . 3 . . . Relay Couplers Released . | . . . . . . . . . . . . Attached 2 | . . . . . . . . 2 . . . Fabnet Peak Effective % . | . . . . . . . . . . . . Robots Rewired 3 | . . . . . . . 3 . . . . Allies Hacked . | . . . . . . . . . . . . Hacks Repelled . | . . . . . . . . . . . . Allies | -11 -10 -10 -10 -9 -8 -7 -7 -7 -7 -7 -7 -------- Run | Yrd Mat Min Exi Min Mat Fac Gar Fac Low Low Zio Total Allies 11 | . . 5 . . . . 3 3 . . . Largest Group 3 | . . 3 2 . . . 3 1 . . . Highest-Rated Group 129 | . . 42 42 . . . 129 29 . . . Highest-Rated Ally 43 | . . 31 31 . . . 43 29 . . . Total Orders 2 | . . . . . . . . 2 . . . STAY 1 | . . . . . . . . 1 . . . FOLLOW 1 | . . . . . . . . 1 . . . Ally Attacks 43 | . . 13 . . . . 20 10 . . . Total Damage 759 | . . 110 . . . . 519 130 . . . Kills 7 | . . 4 . . . . 3 . . . . Allies Corrupted . | . . . . . . . . . . . . Allies Melted 1 | . . . . . . . . 1 . . . Intel | -11 -10 -10 -10 -9 -8 -7 -7 -7 -7 -7 -7 ------- Run | Yrd Mat Min Exi Min Mat Fac Gar Fac Low Low Zio Robot Analysis Total 3 | . 2 . . . 1 . . . . . . Derelict Logs Recovered 3 | . . 2 . . . . . . . 1 . Drone Launches . | . . . . . . . . . . . . Drone Recoveries . | . . . . . . . . . . . . Exploration | -11 -10 -10 -10 -9 -8 -7 -7 -7 -7 -7 -7 ------------- Run | Yrd Mat Min Exi Min Mat Fac Gar Fac Low Low Zio Turns Passed 15763 | 79 1404 1513 352 143 1939 5793 1519 1521 926 483 91 Spaces Moved 7784 | 59 638 679 258 69 958 2866 659 697 555 293 53 Core 15 | 15 . . . . . . . . . . . Treads 2525 | . 322 . . . . 200 405 697 555 293 53 Legs 5244 | 44 316 679 258 69 958 2666 254 . . . . Wheels . | . . . . . . . . . . . . Hover . | . . . . . . . . . . . . Flight . | . . . . . . . . . . . . Fastest Speed 50 | 50 120 130 130 130 123 125 123 162 162 162 162 Average Speed 149 | 108 179 178 130 130 126 138 150 164 162 162 172 Slowest Speed 410 | 200 240 195 130 130 193 250 170 410 162 162 320 Overloaded Moves . | . . . . . . . . . . . . Propulsion Burnouts . | . . . . . . . . . . . . Robots Hopped . | . . . . . . . . . . . . Cave-ins Triggered . | . . . . . . . . . . . . Exploration Rate (%) 50 | 4 94 98 60 13 54 62 72 13 75 48 10 Regions Visited 11 Branch Regions 6 Pre-discovered Areas 1 | . . 1 . . . . . . . . . Known Exits Taken 6 | . 1 1 1 1 1 1 . . . . . Unknown Exits Taken 4 | 1 . . . . . . . 1 1 1 . Scrap Searched 11 | . . 3 . . . . . . 2 5 1 Spaces Dug 41 | . . . . . 2 37 1 1 . . . Terrain Destroyed 166 | . . 11 . 5 2 92 23 1 32 . . Melee 38 | . . . . . 2 34 1 1 . . . Projectile 12 | . . . . 5 . 7 . . . . . AOE 116 | . . 11 . . . 51 22 . 32 . . Terrain Rammed . | . . . . . . . . . . . . Walls Destroyed . | . . . . . . . . . . . . Machines Disabled . | . . . . . . . . . . . . Actions | -11 -10 -10 -10 -9 -8 -7 -7 -7 -7 -7 -7 --------- Run | Yrd Mat Min Exi Min Mat Fac Gar Fac Low Low Zio Total 11418 | 72 765 940 274 90 1643 4525 1139 1044 572 301 53 Wait 2765 | . 41 215 16 2 574 1300 318 292 7 . . Move 7774 | 58 637 678 257 68 957 2866 658 696 554 292 53 Hop . | . . . . . . . . . . . . Pick Up 98 | 8 6 10 . . 19 30 17 5 . 3 . Fast Attach 23 | 2 3 2 1 . 5 4 5 1 . . . Attach 59 | 3 4 3 . 1 8 21 9 8 . 2 . Detach 19 | . 2 . . . 3 12 1 . . 1 . Swap 106 | 1 5 3 . 1 13 57 11 11 2 2 . Drop 74 | . 1 6 . . 18 34 11 3 . 1 . Fire 209 | . 66 23 . 17 . 70 12 17 4 . . Melee 281 | . . . . 1 46 126 92 11 5 . . Ram . | . . . . . . . . . . . . Kick . | . . . . . . . . . . . . Crush . | . . . . . . . . . . . . Escape Stasis 10 | . . . . . . 5 5 . . . . Rewire . | . . . . . . . . . . . . Trap . | . . . . . . . . . . . . Miscellaneous . | . . . . . . . . . . . . Route ------- -11/Scrapyard -10/Materials (discovered 4 exits: *Mat x2 / *Min / *Sub) -10/Mines (discovered 3 exits: *Mat x2 / *Exi) -10/Exiles -9/Mines -8/Materials (discovered 2 exits: *Fac / Sto) -7/Factory (discovered 3 exits: [*Fac] / *Low / Gar) -7/Garrison (discovered 2 exits: *Fac x2) -7/Factory -7/Lower Caves -7/Lower Caves -7/Zion History --------- Turn | Location | Event 6 | -11/Scrapyard | Discovered new exit (range 16) 80 | -11/Scrapyard | Entered Materials 314 | -10/Materials | Build established: Mutant 531 | -10/Materials | Discovered new exit (range 12) 1039 | -10/Materials | Discovered new exit (range 16) 1074 | -10/Materials | Identified exit to Materials 1278 | -10/Materials | Discovered exit to Materials (range 4) 1283 | -10/Materials | Discovered new exit (range 6) 1301 | -10/Materials | Identified exit to Subcaves 1484 | -10/Materials | Identified exit to Mines 1484 | -10/Materials | Entered Mines 1494 | -10/Mines | Assisted by bots powering up and referring to "LRC-V3" 1817 | -10/Mines | Core integrity fell below 50% 2118 | -10/Mines | Build established: Scavenger-Mutant 2381 | -10/Mines | Discovered exit to Materials (range 9) 2758 | -10/Mines | Met a Derelict shopkeep closing up shop 2894 | -10/Mines | Discovered exit to Materials (range 13) 2954 | -10/Mines | Deemed a non-threat by the Exiles lab entrance 2954 | -10/Mines | Discovered new exit (range 5) 2958 | -10/Mines | Identified exit to Exiles 2997 | -10/Mines | Entered Exiles 2997 | -10/Exiles | Accompanied by 2 allies 3027 | -10/Exiles | Led the pair of lost Derelicts to a safe place 3052 | -10/Exiles | Met 8R-AWN 3072 | -10/Exiles | Met EX-HEX 3073 | -10/Exiles | Build established: Mutant 3111 | -10/Exiles | Met EX-BIN 3129 | -10/Exiles | Aligned with FarCom system 3130 | -10/Exiles | Given EX-Vault access code 3164 | -10/Exiles | Opened EX-Vault 3172 | -10/Exiles | Found Longsword +1 3200 | -10/Exiles | Warned to stay clear of 0b10 Research branches 3219 | -10/Exiles | Exiles lab attacked by MAIN.C 3332 | -10/Exiles | Discovered new exit (range 14) 3348 | -10/Exiles | Identified exit to Mines 3349 | -10/Exiles | Left Exiles lab with Longsword +1 3349 | -10/Exiles | Entered Mines 3371 | -9/Mines | Core integrity fell below 20% 3438 | -9/Mines | Met a Derelict who couldn't figure out how to use a Trap Extractor 3482 | -9/Mines | Discovered new exit (range 8) 3491 | -9/Mines | Identified exit to Materials 3492 | -9/Mines | Entered Materials 3492 | -8/Materials | Evolved 4 slots: Propulsion x1, Utility x3 3493 | -8/Materials | Identified exit to Storage 4108 | -8/Materials | Build established: Scavenger-Mutant 4456 | -8/Materials | Discovered new exit (range 15) 4749 | -8/Materials | Build established: Mutant 5311 | -8/Materials | Identified exit to Factory 5431 | -8/Materials | Entered Factory 5431 | -7/Factory | Evolved 2 slots: Propulsion x1, Utility x1 6081 | -7/Factory | Build established: Hacker-Mutant 6793 | -7/Factory | Discovered new exit (range 14) 7029 | -7/Factory | Build established: Hacker-Gladiator 7407 | -7/Factory | Build established: Hacker-Assassin 7838 | -7/Factory | Build established: Hacker-Mutant 9623 | -7/Factory | Repaired Imp. Carbon-fiber Leg 10296 | -7/Factory | Destroyed 8 combat bots 10631 | -7/Factory | First assault squad dispatched 10736 | -7/Factory | Core integrity fell below 50% 10777 | -7/Factory | Lost 3 parts (2n1u) 10953 | -7/Factory | Discovered new exit (range 9) 11224 | -7/Factory | Identified exit to Garrison 11224 | -7/Factory | Entered Garrison 11374 | -7/Garrison | Triggered checkpoint 11515 | -7/Garrison | Build established: Mutant 11716 | -7/Garrison | Discovered new exit (range 12) 11735 | -7/Garrison | System corruption reached 10% 11932 | -7/Garrison | Triggered checkpoint 12122 | -7/Garrison | Lost 3 allies 12132 | -7/Garrison | Triggered checkpoint 12229 | -7/Garrison | Discovered new exit (range 13) 12312 | -7/Garrison | Lost 4 parts (1p3u) 12507 | -7/Garrison | Core integrity fell below 20% 12610 | -7/Garrison | Build established: Scavenger-Mutant 12686 | -7/Garrison | Installed Relay Interface Framework 12743 | -7/Garrison | Entered Factory 12986 | -7/Factory | Build established: Bothacker-Mutant 13502 | -7/Factory | Lost 4 parts (3n1u) 13588 | -7/Factory | Discovered new exit (range 4) 13763 | -7/Factory | Build established: Scavenger-Mutant 13943 | -7/Factory | First assault squad dispatched 14065 | -7/Factory | Build established: Bothacker-Mutant 14264 | -7/Factory | Entered Lower Caves 15177 | -7/Lower Caves | Discovered new exit (range 6) 15190 | -7/Lower Caves | Entered another Lower Caves area 15410 | -7/Lower Caves | Learned location of 1 exit from Factory 15666 | -7/Lower Caves | Discovered new exit (range 5) 15673 | -7/Lower Caves | Entered Zion 15737 | -7/Zion | System corruption cleaned by Quarantine Array 15743 | -7/Zion | RIF detected upon attempting to enter Zion 15743 | -7/Zion | Attacked by Zionites 15743 | -7/Zion | Spotted 3K-DSG(B) 15743 | -7/Zion | Spotted 67-7W9(B) 15764 | -7/Zion | Destroyed by 67-7W9(B) with Slug Cannon Last Messages --------------- lost. 15725_ Acquired 33 matter. 15737_ System quarantine in progress... 15737_ PUBLIC SERVICE ANNOUNCEMENT: Quarantine Array scanned 1 system, cleaned 1. 15743_ PUBLIC SERVICE ANNOUNCEMENT: 0b10 RIF detected in Zion! Defend our home! 15743_ System Quarantine Field Array disabled. 15743_ Slug penetrates System Quarantine Field Array. 15748_ Critical hit (Destroy). 15748_ Lgt. Treads destroyed. 15756_ Critical hit (Destroy). 15756_ Reflective Plating destroyed. 15759_ Arm. Treads destroyed. 15759_ Acquired 4 matter. 15761_ Longsword +1 destroyed. 15761_ Critical hit (Destroy). 15761_ Lgt. Treads destroyed. 15764_ Hvy. Rocket Launcher destroyed. [Achievement: 10k Club] Map ----- +----------------------------------------------------+ | ?????????????????????????????????????????????????? | | ?????????????????????????????????????????????????? | | ?????????????????????????????????????????????????? | | ?????????????????????????????????????????????????? | | ?????????????????????????????????????????????????? | | ?????????????????????????????????????????????????? | | ?????????????????????????????????????????????????? | | ?????????????????????????????????????????????????? | | ?????????????????????????????????????????????????? | | ?????????????????????????????????????????????????? | | ?????????????????????????????????????????????????? | | ???????????????????????????????######????????????? | | ?????????????????????????????## ??????????? | | ????????????????????????????## ?????????? | | ???????????????????????????? ????????? | | ???????????????????????????? ???????? | | ????????????????????????????? ???????? | | ?????????????????????????????# ????????? | | ????????????????????????????## ?????????? | | ???????????????????????????## ??????????? | | ????????####??????????????## #?##???###??? | | ????????# "############??? ### #### #??? | | ????????# """""""""""#????? ## #??? | | ??????### B """" "" "#??????# #### | | ?" # ######## | | ?"" @ [ | | ?"" !%/ | | ??" "# ######### #?? | | ??????### B "" "" #?????# #??? | | ????????# B """""""""#??"""## ##?? | | ????????# "#############! ##? | | ????????####????????????# " ## | | ??????????????????????????" "## ### # | | ??????????????????????????#### #?# | | ?????????????????????????????# #?# | | ????????????????????????????# #?# | | ???????????????????????????# ##?# ## | | ??????????????????????????# ##??### #?# ### | | ??????????????????????????# ##?????# #??##?? | | ??????????????????????????# ###???????# #?????? | | ??????????????????????????? #??????????# #?????? | | ????????????????????????????????????????# #?????? | | ???????????????????????????????????????## ##????? | | ???????????????????????????????????????# #????? | | ???????????????????????????????????????# #????? | | ???????????????????????????????????????## ##????? | | ??????????????????????????????????????## #????? | | ??????????????????????????????????????# ##????? | | ??????????????????????????????????????## #????? | | ??????????????????????????????????????# #????? | +----------------------------------------------------+ Best States ------------- Heat Dissipation 34 Energy Generation 21 Energy Capacity 310 Matter Stores 400 Matter Capacity 400 Sight Range 16 Terrain Scan Density 10 Additional Mass Support 9 Armor Coverage 600 Resistance: KI 30 Resistance: TH 10 Resistance: EM 15 Core Shielding 20 Melee Speed Boost 40 Evasion (%) 55 Melee Accuracy 5 Launcher Accuracy 20 Target Analysis 5 Recoil Reduction 4 Offensive Hacking 20 Relay Coupler Types 2 Relay Coupler Value 51 Item Schematics ----------------- Sensor Array | -10/Materials | Hacked Titanium Leg | -8/Materials | Scanalyzed Hacking Suite | -8/Materials | Scanalyzed Transport Network Coupler | -8/Materials | Scanalyzed Hvy. Rocket Launcher | -8/Materials | Scanalyzed Imp. Kinecellerator | -7/Factory | Hacked Weapon Shielding | -7/Factory | Hacked Med. Treads | -7/Factory | Scanalyzed Imp. VSS Leg | -7/Factory | Hacked Imp. Titanium Leg | -7/Factory | Scanalyzed Power Sword | -7/Factory | Hacked Robot Schematics ------------------ None Fabricated ------------ Nothing Alien Tech Used ----------------- None Achievements -------------- 10k Club Assimilation Complete Dramatic Entrance Dynamic Key Challenges ------------ None Game ------ Seed PlasmaImprinterManipulator Manual? 0 Play Time 02:57:33 Cumulative 30.1 hours Start 2024.11.23 @ 14:52:33 End 2024.11.23 @ 19:11:27 Sessions 1 Manual Loads 0 Difficulty Rogue Special Mode None Game No. 42 Rogue 42 Adventurer 0 Explorer 0 Win Type - Total 0 Types 0/0/0/0/0/0/0/0/0 Lore% 8 Gallery% 20 Achievement% 23 Wizard Run 0 Options --------- Layout 1 ASCII 0 Keyboard 0 Movement Mouse Keybinds 0 Fullscreen 2 Font 16/SmallcapsGlow Map View 55x38 Zoom Use 15% Tactical HUD 1 Map Filters NONE Filters NONE Steam 1 RUN: 65a62fc2-b3e4-44ac-a42e-b6ba632e1359